Cogmind - Beta 17.1 @@@ ROGUE MODE // 2026.09.11 @ 23:27:21 Player: naththebg Result: Destroyed by H-88 Terminator with KE Penetrator Performance ------------- Evolutions (8) 4000 Regions Visited (29) 5800 Robots Destroyed (496) 2480 Value Destroyed (21111) 21111 Prototype IDs (40) 800 Alien Tech Used (3) 600 Bonus (9617) 9617 TOTAL SCORE: 44408 Bonus ------- High Alert Combat Kills 2599 Follower Combat Kills 1292 Entered Garrisons 1000 Used RIF Installer 3000 Entered DSFs 500 Network Hubs Disabled 200 Aligned with FarCom 300 Built Enhanced Grunts 300 A7 Reached Mainframe 300 Met R17 at Cetus 500 Friendly Fire -374 Cogmind --------- Core Integrity 0/1450 Matter 254/300 Energy 100/100 System Corruption 30% Temperature Cool (0) Movement Core (50) Location -2/Quarantine Parts ------- > --- POWER (1) -------- (None) > --- PROPULSION (2) --- (None) > --- UTILITY (4) ------ (None) > --- WEAPON (16) ------ (None) > --- INVENTORY (5) ---- Advanced Cooling System Matter Compressor (0) Relay Coupler [NC] (28) Core Cannon Peak State ------------ > --- POWER ------------ Light Quantum Reactor > --- PROPULSION ------- Centrium Heavy Treads > --- UTILITY ---------- Advanced Cooling System Advanced Cooling System High-capacity Storage Unit Advanced Signal Interpreter > --- WEAPON ----------- Gauss Rifle Gauss Rifle Coil Gun Coil Gun Coil Gun Coil Gun Coil Gun Heavy Machine Gun Heavy Machine Gun KE Penetrator Railgun Railgun Railgun Advanced KE Penetrator Sigix Broadsword > --- INVENTORY -------- Micro Nuclear Core Heavy Treads Centrium Heavy Treads Advanced Heat Sink Experimental Heat Sink Experimental Heat Sink High-capacity Storage Unit Matter Compressor Matter Compressor Matter Compressor Advanced Sensor Array Advanced Signal Interpreter Relay Coupler [NC] Relay Coupler [NC] Long-range Tractor Beam Long-range Tractor Beam Heavy Assault Rifle Advanced Remote Datajack [Rating: 161] Favorites ----------- Power Cooled Ion Engine Engine Cooled Ion Engine Power Core Micro Nuclear Core Reactor Antimatter Reactor Propulsion Light Treads Treads Light Treads Wheel Armored Wheel Utility High-capacity Storage Unit Device Improved Heat Sink Storage High-capacity Storage Unit Processor Advanced Targeting Computer Protection Medium Reactive Plating Weapon Gauss Rifle Energy Gun Cooled Pulse Rifle Energy Cannon Advanced Beam Cannon Ballistic Gun Gauss Rifle Ballistic Cannon Heavy Mass Driver Launcher Grenade Launcher Slashing Weapon Sigix Broadsword Build | -11 -10 -10 -9 -9 -9 -8 -8 -8 -8 -8 -8 -8 -7 -7 -7 -6 -6 -6 -6 -5 -5 -5 -5 -5 -4 -3 -3 -2 -2 ------- Run | Yrd Mat Min Mat Min Exi Min Mat Gar Mat Gar Mat Gar Fac Sto Gar Fac Was Fac DSF Fac Ext Cet Arc Hub Fac Res Gar Res Qua Slots Evolved 16 | . . . 2 . . . 2 . . . . . 2 . . 2 . . . 2 . . . . 2 2 . 2 . Power . | . . . . . . . . . . . . . . . . . . . . . . . . . . . . . . Propulsion . | . . . . . . . . . . . . . . . . . . . . . . . . . . . . . . Utility 2 | . . . 2 . . . . . . . . . . . . . . . . . . . . . . . . . . Weapon 14 | . . . . . . . 2 . . . . . 2 . . 2 . . . 2 . . . . 2 2 . 2 . Parts Attached 211 | 7 6 . 25 1 . 1 13 2 4 17 5 11 5 14 11 7 1 . 4 3 16 5 1 5 7 2 15 8 15 Power 17 | 1 1 . 2 . . . . . . 1 . 1 1 . 1 1 . . . . 1 2 . 1 . . 2 . 2 Engine 9 | 1 1 . 2 . . . . . . 1 . 1 1 . 1 1 . . . . . . . . . . . . . Core 2 | . . . . . . . . . . . . . . . . . . . . . 1 . . . . . 1 . . Reactor 6 | . . . . . . . . . . . . . . . . . . . . . . 2 . 1 . . 1 . 2 Propulsion 39 | 2 . . 7 . . . 4 1 3 6 1 3 . 2 1 2 1 . . . 1 1 . . . . 1 1 2 Treads 36 | 2 . . 7 . . . 4 1 1 6 1 3 . 2 1 1 1 . . . 1 1 . . . . 1 1 2 Leg . | . . . . . . . . . . . . . . . . . . . . . . . . . . . . . . Wheel 3 | . . . . . . . . . 2 . . . . . . 1 . . . . . . . . . . . . . Hover . | . . . . . . . . . . . . . . . . . . . . . . . . . . . . . . Flight . | . . . . . . . . . . . . . . . . . . . . . . . . . . . . . . Utility 59 | 2 2 . 8 1 . . 2 . 1 4 1 4 1 . 3 3 . . 2 1 7 1 . 2 2 . 5 3 4 Device 38 | 1 . . 3 1 . . . . 1 3 1 2 . . 2 2 . . 2 1 5 1 . 1 2 . 5 2 3 Storage 5 | 1 2 . 1 . . . . . . . . . . . . 1 . . . . . . . . . . . . . Processor 9 | . . . 1 . . . 2 . . . . . 1 . 1 . . . . . 1 . . 1 . . . 1 1 Hackware . | . . . . . . . . . . . . . . . . . . . . . . . . . . . . . . Protection 7 | . . . 3 . . . . . . 1 . 2 . . . . . . . . 1 . . . . . . . . Artifact . | . . . . . . . . . . . . . . . . . . . . . . . . . . . . . . Weapon 96 | 2 3 . 8 . . 1 7 1 . 6 3 3 3 12 6 1 . . 2 2 7 1 1 2 5 2 7 4 7 Energy Gun 8 | 1 . . . . . . . . . . . 1 . 4 1 . . . . . . . . . 1 . . . . Energy Cannon 4 | . . . 2 . . 1 . . . . . . . . . . . . . . . . . . . . . . 1 Ballistic Gun 73 | 1 2 . 4 . . . 7 1 . 6 3 2 3 5 2 1 . . 2 1 7 1 1 2 4 2 7 4 5 Ballistic Cannon 7 | . . . . . . . . . . . . . . 3 3 . . . . 1 . . . . . . . . . Launcher 3 | . 1 . 2 . . . . . . . . . . . . . . . . . . . . . . . . . . Special Weapon . | . . . . . . . . . . . . . . . . . . . . . . . . . . . . . . Impact Weapon . | . . . . . . . . . . . . . . . . . . . . . . . . . . . . . . Slashing Weapon 1 | . . . . . . . . . . . . . . . . . . . . . . . . . . . . . 1 Piercing Weapon . | . . . . . . . . . . . . . . . . . . . . . . . . . . . . . . Special Melee Weapon . | . . . . . . . . . . . . . . . . . . . . . . . . . . . . . . Unidentified Prototypes 18 | . . . 1 . . . 1 . . . . . . 4 . 1 . . . 1 . 2 . . 2 . . 1 5 Corrupted Parts 4 | . . . . . . . . . . . . . . . . . . . . . . . . . 2 . 1 . 1 System Corruption 13 | . . . . . . . . . . . . . . . . . . . . . . . . . 8 . 2 . 3 Parts Lost 81 | . 1 . 3 . . 1 . . 1 6 2 6 1 2 2 . 2 . 5 1 5 . . . 2 . 9 2 30 Power 9 | . 1 . . . . . . . . 1 . 1 . . 1 . . . . . . . . . . . 2 . 3 Propulsion 7 | . . . . . . . . . . . . 1 . . 1 . 2 . . . . . . . . . . . 3 Utility 11 | . . . 2 . . . . . . . . 2 . . . . . . 2 . 1 . . . . . 1 . 3 Weapon 54 | . . . 1 . . 1 . . 1 5 2 2 1 2 . . . . 3 1 4 . . . 2 . 6 2 21 Highest Loss Streak 7 | . 1 . 1 . . 1 . . 1 2 1 4 1 1 2 . 2 . 4 1 1 . . . 1 . 5 1 7 To Critical Strikes 1 | . . . . . . . . . . . . . . . . . . . . . 1 . . . . . . . . Average Backups 17 | 3 8 13 17 20 20 20 19 19 19 18 19 19 18 16 17 14 10 9 10 12 16 17 16 16 16 16 15 16 17 Power 1 | . . . 1 2 1 1 1 1 1 . . . 1 1 . . . 1 1 1 1 1 1 1 1 1 . 1 . Propulsion 4 | 2 5 6 7 8 8 8 8 5 4 5 4 4 5 5 4 6 3 3 2 3 3 3 3 3 3 3 3 1 1 Utility 7 | . . 2 1 1 2 4 3 8 11 11 11 10 10 6 3 4 3 2 4 6 8 8 8 7 6 7 8 12 11 Weapon 4 | . 2 4 7 9 8 7 5 4 3 1 2 3 2 3 9 4 3 3 2 1 2 3 3 4 5 5 2 . . Tool/Special . | . . . . . . . . . . . . . . . . . . . . . . . . . . . . . . Unused Backups 51 | . 2 . 4 . 1 . . 3 . 1 1 1 1 6 4 . 1 . . . 5 2 . 2 . . 3 1 13 Power 2 | . . . . . . . . 1 . . . . . . 1 . . . . . . . . . . . . . . Propulsion 13 | . 2 . 3 . . . . 1 . . 1 . 1 . . . 1 . . . . 1 . . . . 2 . 1 Utility 22 | . . . 1 . . . . 1 . 1 . 1 . 6 2 . . . . . . . . 1 . . . 1 8 Weapon 10 | . . . . . 1 . . . . . . . . . 1 . . . . . 5 1 . 1 . . 1 . . Tool/Special 4 | . . . . . . . . . . . . . . . . . . . . . . . . . . . . . 4 Average Slot Usage (%) 94 | . 100 100 97 100 100 99 99 100 99 99 99 99 99 99 84 96 93 93 97 84 90 94 94 94 93 85 92 91 67 Engine 6 | . 14 14 11 11 11 11 9 9 9 8 9 8 7 7 6 6 6 6 6 5 4 . . . . . . . . Reactor 1 | . . . . . . . . . . . . . . . . . . . . . . 4 5 5 5 4 3 4 3 Treads 12 | . 28 28 22 22 22 22 18 18 17 13 17 14 . 14 8 9 4 . 11 1 3 5 5 5 5 4 4 4 3 Wheel 1 | . . . . . . . . . . 4 . 3 15 . 6 2 3 6 . 4 3 . . . . . . . . Device 10 | . 14 14 15 11 11 11 9 9 9 10 18 11 7 7 7 5 6 6 6 7 10 11 11 11 9 9 11 13 7 Storage 7 | . 14 14 11 11 11 11 9 9 9 9 9 9 7 7 7 6 5 6 6 5 5 5 5 5 5 4 4 4 3 Processor 6 | . . . 8 11 11 11 9 18 18 15 . . 5 7 12 13 13 13 11 5 5 5 5 5 5 4 1 . 4 Protection 3 | . . . 7 11 11 11 8 . . 1 9 15 8 7 2 . . . . . . . . . . . . . . Energy Gun 1 | . 1 . . . . . . . . . . . . 6 6 4 3 6 6 5 5 5 5 2 . . . . . Energy Cannon 2 | . . . 9 22 22 4 . . . . . . . . . . . . . . . . . . . . . . . Ballistic Gun 35 | . 18 14 11 . . . 35 36 35 35 35 35 45 37 9 46 47 46 45 41 44 52 52 55 62 57 64 65 38 Ballistic Cannon 1 | . . . . . . . . . . . . . . . 14 . . . . 3 2 . . . . . . . . Peak Build Rating 161 | 7 8 9 24 24 26 32 34 36 37 36 34 35 38 49 62 63 63 59 61 80 82 104 109 112 131 134 136 150 161 Average Rating 62 | 4 7 8 20 23 24 24 32 35 36 32 32 29 36 41 56 57 57 59 56 71 74 94 106 109 125 125 129 138 126 On Entrance 56 | . 7 8 9 22 24 26 22 34 36 33 32 33 29 38 49 48 63 59 59 54 72 80 104 109 110 125 134 132 135 Avg Prop Armor Cover (%) 5 | . . . . . . . . . . . . . . . 5 8 . . . . . . . . . . . . . Naked Turns 13 | . . . . . . . . . . . . . . . . . . . . . . . . . . . . . 13 Heaviest Build 142 | 11 31 31 67 67 67 73 71 62 62 86 86 100 89 96 112 123 123 84 84 104 106 106 109 112 123 118 138 142 141 Greatest Support 80 | 40 40 40 40 40 40 40 40 40 40 40 40 40 28 40 40 40 40 28 40 40 43 80 80 80 80 80 80 80 80 Greatest Overweight (x) 9 | . . . 1 1 1 1 1 1 2 3 2 3 3 3 9 6 4 2 2 3 3 3 1 1 1 1 1 2 1 Average Overweight (x) 1 | . . . . 1 1 1 1 1 1 1 2 2 3 2 5 3 2 2 2 2 2 1 1 1 1 1 1 1 . Largest Inventory Capacity 25 | 8 15 15 20 20 20 20 20 20 20 20 20 20 20 20 20 25 25 20 20 20 20 20 20 20 20 20 20 20 20 Average Capacity 19 | 6 11 15 19 20 20 20 20 20 20 20 20 20 20 20 20 20 20 20 20 20 20 20 20 20 20 20 20 20 19 Most Carried 21 | 6 11 15 20 20 20 20 20 20 20 20 20 20 20 20 20 19 21 10 16 17 20 20 20 20 20 19 20 20 20 Average Carried 18 | 4 8 13 17 20 19 20 19 19 19 18 19 19 19 17 19 16 11 10 12 13 17 19 20 19 19 18 18 18 19 Final Capacity 25 | 8 15 15 20 20 20 20 20 20 20 20 20 20 20 20 20 25 20 20 20 20 20 20 20 20 20 20 20 20 5 Final Carried 20 | 6 11 15 20 20 20 20 20 20 20 19 20 20 20 19 17 19 10 10 13 15 20 20 20 20 19 17 20 19 5 Class Distribution -------------------- 46% | Scavenger-Executioner 19% | Mutant 8% | Scavenger-Skirmisher 7% | Scavenger-Gunner 4% | Scavenger-Tank 4% | Gunner 4% | Skirmisher 3% | Scavenger-Mutant Dominant Class ---------------- Mutant | -10/Materials Mutant | -10/Mines Mutant | -9/Materials Mutant | -9/Mines Mutant | -9/Exiles Mutant | -8/Mines Skirmisher | -8/Materials Scavenger-Gunner | -8/Garrison Gunner | -8/Materials Scavenger-Gunner | -8/Garrison Scavenger-Skirmisher | -8/Materials Scavenger-Tank | -8/Garrison Scavenger-Executioner | -7/Factory Scavenger-Executioner | -7/Storage Executioner | -7/Garrison Scavenger-Executioner | -6/Factory Scavenger-Executioner | -6/Waste Scavenger-Executioner | -6/Factory Scavenger-Executioner | -6/DSF Scavenger-Executioner | -5/Factory Scavenger-Executioner | -5/Extension Scavenger-Executioner | -5/Cetus Scavenger-Executioner | -5/Archives Scavenger-Executioner | -5/Hub_04(d) Scavenger-Executioner | -4/Factory Scavenger-Executioner | -3/Research Scavenger-Executioner | -3/Garrison Scavenger-Executioner | -2/Research Scavenger-Executioner | -2/Quarantine Resources | -11 -10 -10 -9 -9 -9 -8 -8 -8 -8 -8 -8 -8 -7 -7 -7 -6 -6 -6 -6 -5 -5 -5 -5 -5 -4 -3 -3 -2 -2 ----------- Run | Yrd Mat Min Mat Min Exi Min Mat Gar Mat Gar Mat Gar Fac Sto Gar Fac Was Fac DSF Fac Ext Cet Arc Hub Fac Res Gar Res Qua Matter Collected 24497 | 273 45 207 860 10 12 128 826 43 1093 1100 637 781 370 909 1165 304 846 . 517 764 1984 801 250 517 2186 . 2429 1804 3636 Remotely 2640 | . . . . . . . . . . . . . . . 186 . . . . . 513 . . 47 250 . 835 . 809 Salvage Created 25357 | 120 176 63 1304 151 . 281 1650 43 1246 1472 1232 742 395 655 1046 378 1247 . 531 661 1622 364 188 922 2247 . 2481 1493 2647 Parts 1188 | 8 18 3 92 11 . 15 90 4 65 102 56 70 17 42 50 13 . . 18 28 62 15 7 35 97 . 98 55 117 Haulers Intercepted 29 | . 1 . 5 . . . 6 . 3 . 3 . . 3 . . . . . 1 3 . . 1 1 . . 1 1 Recyclers Shooed 12 | . 1 . . 2 . . 2 . 2 . 2 . 1 1 . . . . . . 1 . . . . . . . . Parts Field Recycled . | . . . . . . . . . . . . . . . . . . . . . . . . . . . . . . Retrieved Matter . | . . . . . . . . . . . . . . . . . . . . . . . . . . . . . . Parts Self-Destructed . | . . . . . . . . . . . . . . . . . . . . . . . . . . . . . . Prevented . | . . . . . . . . . . . . . . . . . . . . . . . . . . . . . . Parts Restored 1 | . . . . . . . . . . . . . . . . . 1 . . . . . . . . . . . . Broken 1 | . . . . . . . . . . . . . . . . . 1 . . . . . . . . . . . . Kills | -11 -10 -10 -9 -9 -9 -8 -8 -8 -8 -8 -8 -8 -7 -7 -7 -6 -6 -6 -6 -5 -5 -5 -5 -5 -4 -3 -3 -2 -2 ------- Run | Yrd Mat Min Mat Min Exi Min Mat Gar Mat Gar Mat Gar Fac Sto Gar Fac Was Fac DSF Fac Ext Cet Arc Hub Fac Res Gar Res Qua Combat Hostiles Destroyed 372 | . 7 4 33 6 . 10 16 1 15 34 16 25 4 10 27 5 6 . 10 7 16 5 2 5 27 . 31 17 33 Melee 1 | . . . . . . . . . . . . . . . . . . . . . . . . . . . . . 1 Guns 302 | . . . 13 . . . 16 1 15 34 16 15 4 10 15 5 6 . 10 7 16 5 2 5 27 . 31 17 32 Cannons 23 | . . . 2 6 . 3 . . . . . . . . 12 . . . . . . . . . . . . . . AOE 46 | . 7 4 18 . . 7 . . . . . 10 . . . . . . . . . . . . . . . . . Classes Destroyed 24 | 3 4 . 3 . . . 2 1 . 1 1 . . . 1 . 1 . 1 . 1 . . . 1 . 1 . 3 Worker 14 | 2 1 . 2 . . . 2 . 1 . 1 . 1 . . . . . . . 2 . . 1 1 . . . . Builder 12 | . . . 2 . . . 2 . . . . . . 1 . . . . . . 1 . . 1 2 . . 1 2 Tunneler 6 | 1 . . . . . 1 . . 1 . . . . . . . . . . . 3 . . . . . . . . Hauler 29 | . 1 . 5 . . . 6 . 3 . 3 . . 3 . . . . . 1 3 . . 1 1 . . 1 1 Recycler 24 | 1 1 . . . . . 3 . 3 . 2 . 2 1 . 1 . . . 2 2 . . 2 2 . . 1 1 Mechanic 1 | . . . . . . . 1 . . . . . . . . . . . . . . . . . . . . . . Operator 6 | . . . . . . . . . . . 2 . . 2 . . . . . . 1 . . . . . . . 1 Watcher 30 | . 1 . 5 . . . 5 . 5 . 2 . . . 1 . . . . . 2 1 . 2 2 . . 1 3 Swarmer 76 | . 6 2 13 4 . 4 . . 3 7 . 10 1 2 7 . . . . . 3 . . . 5 . . 4 5 Cutter 1 | . . . . . . . . . . . . . . . . . . . . . . . . . . . 1 . . Saboteur 1 | . . . . . . . . . . . . . . . . . . . . . . . . . . . . . 1 Grunt 141 | . 1 2 12 2 . 6 8 . 8 12 10 5 . 3 13 3 . . 5 2 5 . . 2 11 . 18 5 8 Brawler 6 | . . . . . . . . . . 1 . . 1 . . 1 . . 1 . . . . . . . 1 1 . Duelist 13 | . . . 1 . . . . . 1 4 1 . 1 . . . . . . . . . . . 1 . 1 2 1 Protector 1 | . . . . . . . . . . . . . . . . . . . . . . . . . . . . . 1 Sentry 59 | . . . 7 . . . 7 . 1 6 4 4 1 4 4 1 . . . . 6 . 2 3 1 . 3 1 4 Demolisher 2 | . . . . . . . . . . . . . . . . . . . . . . . . . 1 . 1 . . Specialist 1 | . . . . . . . . . . . . . . . . . . . 1 . . . . . . . . . . Hunter 22 | . . . . . . . 1 . 2 1 1 . . . 2 . . . 2 2 1 . . . 2 . 2 2 4 Programmer 32 | . . . . . . . . 1 . 3 . 6 . 1 . . . . . 3 . . . . 6 . 2 2 8 Heavy 2 | . . . . . . . . . . . . . . . 1 . . . 1 . . . . . . . . . . Behemoth 3 | . . . . . . . . . . . . . . . . . . . . . 1 . . . . . 2 . . Compactor 6 | . . . . . . . . . . . . . . . . . 6 . . . . . . . . . . . . Cetus Guard 5 | . . . . . . . . . . . . . . . . . . . . . . 5 . . . . . . . Enhanced Grunt 1 | . . . . . . . . . . . . . . . . . . . . . . . . 1 . . . . . Alpha 7 1 | . . . . . . . . . . . . . . . . . . . . . . . . . . . . . 1 Butcher 1 | . . . . . . . . . . . . . . . . . . . . . 1 . . . . . . . . Best Kill Streak 15 | 2 4 2 7 4 . 4 7 1 9 8 5 4 4 4 8 4 3 . 3 4 6 3 1 2 5 . 15 5 8 Combat Bots Only 15 | . 3 2 7 4 . 4 7 1 3 8 3 4 3 3 8 4 3 . 3 3 3 3 1 1 5 . 15 4 5 Max Kills in Single Turn 4 | 1 3 2 4 1 . 4 2 1 2 3 2 2 2 2 3 2 1 . 2 3 3 2 1 2 4 . 3 4 3 Gunslinging 3 | . . . . . . . . . 1 1 1 . . . 2 1 . . 1 2 1 1 . . 2 . 2 3 1 Exploded 3 | . 2 2 3 . . 3 . . . . . 2 . . . . . . . . . . . . . . . . . Melee 1 | . . . . . . . . . . . . . . . . . . . . . . . . . . . . . 1 Uniques/NPCs Destroyed . | . . . . . . . . . . . . . . . . . . . . . . . . . . . . . . Combat | -11 -10 -10 -9 -9 -9 -8 -8 -8 -8 -8 -8 -8 -7 -7 -7 -6 -6 -6 -6 -5 -5 -5 -5 -5 -4 -3 -3 -2 -2 -------- Run | Yrd Mat Min Mat Min Exi Min Mat Gar Mat Gar Mat Gar Fac Sto Gar Fac Was Fac DSF Fac Ext Cet Arc Hub Fac Res Gar Res Qua Hostile Shots Fired 1417 | . 12 6 103 13 . 39 53 4 31 84 46 91 37 72 90 5 2 . 19 25 64 16 9 . 62 . 97 32 405 Missed 375 | . 2 2 31 4 . 10 21 1 7 19 19 28 14 27 33 2 . . 4 4 16 9 3 . 13 . 27 6 73 Hits 1042 | . 10 4 72 9 . 29 32 3 24 65 27 63 23 45 57 3 2 . 15 21 48 7 6 . 49 . 70 26 332 Melee 26 | . . . . . . . . . . 12 . . 5 . . . 2 . 1 . . . . . . . 1 2 3 Projectile 1016 | . 10 4 72 9 . 29 32 3 24 53 27 63 18 45 57 3 . . 14 21 48 7 6 . 49 . 69 24 329 AOE 6 | . . . . . . . . . . . 1 . . . . . . . . . . . . . 2 . 3 . . Critical Strikes 43 | . . 1 2 . . . . . 1 6 . 4 . 1 . 1 1 . 1 1 2 1 . . 1 . 4 . 16 Part Disruptions 4 | . . . . . . . . . . 1 . . . . . . . . . . . . . . . . 1 1 1 Damage Taken 20041 | . 161 85 910 72 . 458 460 55 332 1157 447 1018 371 339 687 137 133 . 476 405 1012 129 233 96 1054 . 1535 637 7642 Core 2476 | . 21 25 161 24 . 77 30 . 23 68 . 132 . 33 103 . 6 . 53 . 86 . 27 . 39 . 94 . 1474 Absorbed by Shields 84 | . . . . . . . . . . 26 . . . . 8 . . . . . . 50 . . . . . . . Reduced by Siege Mode 255 | . . . . . . . . . . . . . . . . . . . . . . . . . 6 . 36 18 195 Ignored by Resistances 376 | . . . 16 14 . 12 47 . . . 27 55 50 58 97 . . . . . . . . . . . . . . Regen/Repaired (Parts) 1341 | . . . . . . . . . . . . . . . . . . . . 131 . . . . . . . . 1210 Core Remaining (%) 79 | 100 . 81 . . . 34 . . . . . 54 . . 80 . . . 93 . . . . 88 96 . 92 . . Volleys Fired 812 | 3 19 8 89 11 . 14 63 21 35 57 44 48 12 27 43 5 16 . 13 14 59 16 4 20 31 . 36 23 81 Largest 16 | 2 2 1 2 2 . 2 4 4 4 4 4 4 6 6 6 8 8 . 8 9 10 9 10 10 12 . 14 16 14 Hottest 505 | 60 40 30 136 136 . 136 94 103 103 106 94 94 140 175 195 224 224 . 216 244 281 254 286 316 396 . 450 505 439 Shots Fired 4171 | 6 27 8 162 22 . 26 252 36 140 208 170 145 71 134 145 39 123 . 94 83 341 103 38 118 363 . 416 290 611 Gun 3984 | 6 16 2 125 . . . 252 36 140 204 169 133 71 129 86 39 123 . 94 80 340 103 38 118 363 . 416 290 611 Cannon 130 | . . . 22 22 . 19 . . . . . . . 4 59 . . . . 3 1 . . . . . . . . Launcher 57 | . 11 6 15 . . 7 . . . 4 1 12 . 1 . . . . . . . . . . . . . . . Special . | . . . . . . . . . . . . . . . . . . . . . . . . . . . . . . Kinetic 3902 | 3 16 2 125 . . . 252 36 140 204 169 132 71 116 111 38 116 . 81 74 295 98 35 108 363 . 416 290 611 Thermal 209 | 3 . . 22 22 . 18 . . . . . . . 16 34 1 7 . 13 9 46 5 3 10 . . . . . Explosive 57 | . 11 6 15 . . 7 . . . 4 1 12 . 1 . . . . . . . . . . . . . . . Electromagnetic 3 | . . . . . . 1 . . . . . 1 . 1 . . . . . . . . . . . . . . . Robot Hit Streak 49 | 2 6 1 21 6 . 9 23 22 30 49 20 9 9 13 12 9 10 . 14 9 10 19 16 12 22 . 26 13 31 Robot Miss Streak 16 | 1 2 1 8 1 . 1 4 . 3 3 4 3 5 5 16 4 9 . 6 4 8 3 1 5 5 . 4 7 5 Penetration Max 2 | . . . . . . . . . 1 1 . . . . . . . . 1 1 1 1 . 1 1 . 2 1 2 Secondary Targets 98 | . . . 1 . . . 3 . 3 9 4 5 2 1 6 2 2 . 3 2 4 3 . 1 8 . 16 9 14 Max Gunslinging Chain 3 | . . . 1 . . . 1 . 1 2 1 1 1 1 2 2 1 . 2 2 2 2 . 1 2 . 3 3 1 Shots Hit Robots 2407 | 4 13 1 102 13 . 18 156 9 94 149 95 64 42 78 74 26 105 . 72 56 189 71 25 43 178 . 224 160 346 Core Hits 1394 | 4 16 7 64 8 . 20 66 3 47 64 48 45 15 56 70 31 71 . 93 58 157 29 9 33 86 . 103 71 120 Critical Kills 26 | . . . . . . . . . . 1 . 1 . . . . . . . . . . 1 1 8 . 5 5 4 Critical Parts Destroyed 62 | . . . 2 . . . 1 . 1 2 . . . 1 . . . . . . . 1 1 5 12 . 14 10 12 Critical Strikes 105 | . . . 2 . . . 1 . 1 3 . 1 . 1 4 . . . 2 . 1 3 2 6 21 . 23 15 19 Burn 3 | . . . . . . . . . . . . . . . 1 . . . 2 . . . . . . . . . . Destroy 99 | . . . 2 . . . 1 . 1 3 . 1 . 1 . . . . . . 1 3 2 6 21 . 23 15 19 Blast 3 | . . . . . . . . . . . . . . . 3 . . . . . . . . . . . . . . Melee Attacks 4 | . . . . . . . . . . . . . . . . . . . . . . . . . . . . . 4 Impact . | . . . . . . . . . . . . . . . . . . . . . . . . . . . . . . Slashing 4 | . . . . . . . . . . . . . . . . . . . . . . . . . . . . . 4 Piercing . | . . . . . . . . . . . . . . . . . . . . . . . . . . . . . . Sneak Attacks . | . . . . . . . . . . . . . . . . . . . . . . . . . . . . . . Combat Hostiles . | . . . . . . . . . . . . . . . . . . . . . . . . . . . . . . Follow-up Attacks . | . . . . . . . . . . . . . . . . . . . . . . . . . . . . . . Damage Inflicted 56438 | 46 685 272 3167 326 . 1010 2492 218 1775 2605 1678 1887 684 1517 2461 472 2415 . 1413 1189 4294 1575 522 1486 4168 . 5245 4230 8606 Guns 49614 | 45 95 13 1247 . . . 2473 200 1770 2605 1653 1231 684 1508 933 472 2415 . 1413 1189 4221 1575 522 1209 4168 . 5245 4196 8532 Cannons 2473 | . . . 288 269 . 315 . . . . . . . . 1528 . . . . . 73 . . . . . . . . Explosions 4113 | . 590 244 1617 . . 695 . . . . 22 656 . . . . . . . . . . . 255 . . . 34 . Melee . | . . . . . . . . . . . . . . . . . . . . . . . . . . . . . . Ramming 238 | 1 . 15 15 57 . . 19 18 5 . 3 . . 9 . . . . . . . . . 22 . . . . 74 Kinetic 49929 | 23 95 13 1247 . . . 2473 200 1770 2605 1653 1231 684 1261 2060 454 2302 . 1279 1055 4096 1575 503 1209 4168 . 5245 4196 8532 Thermal 2180 | 22 50 . 288 269 . 307 . . . . . . . 227 401 18 113 . 134 134 198 . 19 . . . . . . Explosive 3694 | . 540 244 1617 . . 615 . . . . 22 656 . . . . . . . . . . . . . . . . . Electromagnetic 397 | . . . . . . 88 . . . . . . . 20 . . . . . . . . . 255 . . . 34 . Impact . | . . . . . . . . . . . . . . . . . . . . . . . . . . . . . . Slashing . | . . . . . . . . . . . . . . . . . . . . . . . . . . . . . . Piercing . | . . . . . . . . . . . . . . . . . . . . . . . . . . . . . . Highest Corruption 30 | . . . 1 1 1 2 . . . 1 1 2 . . . . 22 22 28 3 5 5 5 5 10 . 3 5 30 Average Corruption 5 | . . . 1 1 1 1 . . . 1 1 1 . . . . 14 22 23 2 3 5 5 4 8 . 2 3 15 Corruption Purged 7 | . . . . . . . . . . . . . . . . . . . . . . . . 5 2 . . . . Corruption Blocked . | . . . . . . . . . . . . . . . . . . . . . . . . . . . . . . Effects 370 | . . . 3 10 1 6 . . . 10 15 18 . . . . 14 1 19 2 33 11 3 20 86 . 29 11 78 Message Errors 84 | . . . . 6 . 2 . . . 5 6 3 . . . . 2 1 4 . 10 2 . 5 18 . 5 1 14 Matter Fused 82 | . . . . 1 1 1 . . . 1 2 5 . . . . 2 . 4 . 6 6 . 4 22 . 5 5 17 Heat Flow Errors 39 | . . . . 2 . 1 . . . 2 2 2 . . . . 1 . 1 . 2 . . . 13 . 4 . 9 Energy Discharges 37 | . . . 1 . . 1 . . . 2 1 3 . . . . . . 2 1 4 . 1 4 7 . 4 . 6 Parts Rejected 7 | . . . . . . . . . . . . . . . . . 2 . 1 . 1 . . . 1 . . 1 1 Parts Fused 1 | . . . . . . 1 . . . . . . . . . . . . . . . . . . . . . . . Data Loss (minor) 41 | . . . 2 . . . . . . . 1 2 . . . . 3 . 1 . 5 2 1 2 8 . 2 1 11 Data Loss (major) 21 | . . . . 1 . . . . . . 2 . . . . . 1 . 1 1 1 . . 2 6 . 1 1 4 Misfires 15 | . . . . . . . . . . . . 1 . . . . . . . . 2 . . 2 3 . 6 . 1 Alerts 7 | . . . . . . . . . . . . 2 . . . . . . . . . . . . 1 . 1 1 2 Misdirections 1 | . . . . . . . . . . . . . . . . . . . . . . . . . . . . . 1 Weapon Failures 35 | . . . . . . . . . . . 1 . . . . . 3 . 5 . 2 1 1 1 7 . 1 1 12 Overload Shots 31 | . . . . . . . . . . . . . . . . . . . . . 18 5 . 8 . . . . . Effects 3 | . . . . . . . . . . . . . . . . . . . . . 2 . . 1 . . . . . Energy Bleed 2 | . . . . . . . . . . . . . . . . . . . . . 1 . . 1 . . . . . Short Circuit 1 | . . . . . . . . . . . . . . . . . . . . . 1 . . . . . . . . Overflow Damage 447 | . 39 . 102 1 . 54 . . . . . 27 . . 140 . . . . . 72 . . 9 . . . . 3 Projectiles 225 | . . . . 1 . 12 . . . . . . . . 140 . . . . . 72 . . . . . . . . Explosions 219 | . 39 . 102 . . 42 . . . . . 27 . . . . . . . . . . . 9 . . . . . Melee 3 | . . . . . . . . . . . . . . . . . . . . . . . . . . . . . 3 Knockbacks 9 | . . 1 . . . . . . . . . . . 1 4 . . . . . 1 . . . . . . . 2 Impact 4 | . . 1 . . . . . . . . . . . 1 . . . . . . . . . . . . . . 2 Kinetic 5 | . . . . . . . . . . . . . . . 4 . . . . . 1 . . . . . . . . Secondary . | . . . . . . . . . . . . . . . . . . . . . . . . . . . . . . Self-Inflicted Damage 475 | . 77 46 9 . . 38 . 10 . 62 . 121 . 11 . . . . . . . . . 96 . . . . 5 Shots 19 | . 3 3 1 . . 1 . 1 . 3 . 5 . 1 . . . . . . . . . 1 . . . . . Rammed 53 | . . 2 2 11 . . 4 5 3 . 1 . . 3 . . . . . . . . . 5 . . . . 17 Targets Rammed 56 | 1 . 2 2 11 . . 4 6 3 . 1 . . 3 . . . . . . . . . 5 . . . . 18 Kicked . | . . . . . . . . . . . . . . . . . . . . . . . . . . . . . . Crushed 3 | 1 . . . . . . . 1 . . . . . . . . . . . . . . . . . . . . 1 Highest Temperature 463 | 40 1 7 165 236 . 261 12 18 63 179 254 193 81 99 147 93 186 . 165 3 156 6 45 263 307 . 463 306 330 Average Temperature 65 | 19 1 4 47 76 . 123 4 12 19 26 85 41 28 31 42 47 62 . 47 3 37 3 18 73 100 . 111 103 69 Received Heat Transfer 2960 | . 12 33 369 18 . 207 180 . 126 288 201 135 45 120 231 45 . . 81 27 168 . 18 . 72 . 350 . 234 Effects 4 | . . . . . . . . . . . 1 . . . . . . . . . . . . . . . 3 . . Energy Bleed 1 | . . . . . . . . . . . 1 . . . . . . . . . . . . . . . . . . Interference 2 | . . . . . . . . . . . . . . . . . . . . . . . . . . . 2 . . Matter Decay 1 | . . . . . . . . . . . . . . . . . . . . . . . . . . . 1 . . Siege Activations 34 | . . . . . . . . . . . . . . . . . . . . . . 1 1 . 11 . 5 4 12 Total Turns 553 | . . . . . . . . . . . . . . . . . . . . . . 14 6 . 177 . 87 48 221 Longest Duration 55 | . . . . . . . . . . . . . . . . . . . . . . 14 6 . 55 . 45 21 34 Martial Activations . | . . . . . . . . . . . . . . . . . . . . . . . . . . . . . . Shielding Activations . | . . . . . . . . . . . . . . . . . . . . . . . . . . . . . . Robots Disrupted . | . . . . . . . . . . . . . . . . . . . . . . . . . . . . . . Combat Hostiles . | . . . . . . . . . . . . . . . . . . . . . . . . . . . . . . Robots Corrupted . | . . . . . . . . . . . . . . . . . . . . . . . . . . . . . . Combat Hostiles . | . . . . . . . . . . . . . . . . . . . . . . . . . . . . . . Parts Fried 2 | . . . . . . . . . . . . . . . . . . . . . . 1 . 1 . . . . . Impact Corruptions 1 | . . . . . . . . . . . . . . . . . . . . . . . . . . . . . 1 Robots Melted . | . . . . . . . . . . . . . . . . . . . . . . . . . . . . . . Combat Hostiles . | . . . . . . . . . . . . . . . . . . . . . . . . . . . . . . Parts Melted 7 | . . . 2 1 . . . . . . . . . . 2 . . . 1 1 . . . . . . . . . Heat Transferred 4281 | 50 50 . 518 481 . 555 . . . . . . . 444 851 37 222 . 407 259 370 . 37 . . . . . . Parts Sabotaged 1 | . . . . . . . . . . . . . . . . . . . . . . . . . . . . . 1 Parts Stolen . | . . . . . . . . . . . . . . . . . . . . . . . . . . . . . . Parts Stripped . | . . . . . . . . . . . . . . . . . . . . . . . . . . . . . . Power Chain Reactions 1 | . . . . . . . . . . . . . . . . . . . . . . . . . . . . 1 . Latent Energy Used 45 | . . . . . . 45 . . . . . . . . . . . . . . . . . . . . . . . LE Corruption 1 | . . . . . . 1 . . . . . . . . . . . . . . . . . . . . . . . Alert | -11 -10 -10 -9 -9 -9 -8 -8 -8 -8 -8 -8 -8 -7 -7 -7 -6 -6 -6 -6 -5 -5 -5 -5 -5 -4 -3 -3 -2 -2 ------- Run | Yrd Mat Min Mat Min Exi Min Mat Gar Mat Gar Mat Gar Fac Sto Gar Fac Was Fac DSF Fac Ext Cet Arc Hub Fac Res Gar Res Qua Maximum Alert Level 4 | . . . 2 . . . . 3 1 4 2 4 2 1 4 2 1 . 1 . . 1 1 2 2 1 4 3 2 Low Security (%) 39 | 100 100 100 33 100 . 100 100 3 7 . . . . 44 7 . 91 100 78 100 100 87 72 37 73 . 3 . . Level 1 22 | . . . 27 . . . . 54 92 18 82 25 . 55 10 . 8 . 21 . . 12 27 49 14 100 7 . 11 Level 2 21 | . . . 39 . . . . 40 . 14 17 15 100 . 29 100 . . . . . . . 12 11 . 6 65 88 Level 3 15 | . . . . . . . . 1 . 46 . 57 . . 48 . . . . . . . . . . . 77 34 . Level 4 1 | . . . . . . . . . . 20 . 1 . . 3 . . . . . . . . . . . 5 . . Level 5 . | . . . . . . . . . . . . . . . . . . . . . . . . . . . . . . High Security . | . . . . . . . . . . . . . . . . . . . . . . . . . . . . . . Max Security . | . . . . . . . . . . . . . . . . . . . . . . . . . . . . . . Sterilizations 1 | . . . . . . . . . . . . . . . . . . . 1 . . . . . . . . . . Peak Influence 1161 | 10 188 120 553 190 . 159 186 731 380 1132 557 1118 603 316 1100 673 200 42 205 134 166 220 220 523 485 240 1161 795 659 Initial 652 | . 6 25 . 190 . . 49 105 356 210 551 265 586 269 133 577 200 42 25 107 57 85 50 59 252 240 172 652 418 Average 369 | 1 93 38 321 43 . 85 107 394 285 769 356 669 562 217 682 623 129 39 134 50 61 147 157 234 165 237 837 687 530 Influence Increases 14513 | 20 323 247 1226 166 . 318 564 626 484 982 586 913 147 419 1007 155 1 5 250 211 695 315 190 1022 1017 . 1119 505 1000 Destroy 0b10 Robot/C 7900 | . 140 140 740 120 . 200 320 20 300 680 320 500 100 220 600 100 . . 200 140 420 160 80 240 560 . 620 340 640 Destroy 0b10 Robot/NC 650 | 20 20 . 70 . . 5 95 . 65 . 50 . 15 35 5 5 . . 5 15 70 10 . 50 45 . 5 20 45 Destroy Leader 1420 | . 34 30 220 20 . 30 122 . 86 40 110 40 10 86 40 20 . . 30 22 54 . . 86 118 . 60 64 98 Allied During Kill 756 | . . 19 26 . . . . . . . . . 7 7 14 14 . . 12 . 43 102 80 365 47 . 20 . . Successful Hack 150 | . 11 . 16 . . . 6 . . . 8 14 . . 30 . . 5 . . 16 . . . . . 16 . 28 Select Force Hacks 90 | . 30 . . . . . . . 30 . 30 . . . . . . . . . . . . . . . . . . Disable Machine 780 | . 30 30 60 15 . . 15 . . . 30 . . 60 45 15 . . . 30 90 15 30 75 90 . 15 30 105 Anti-Garrison Action 1300 | . . . . . . . . 550 . 150 . 200 . . 150 . . . . . . . . . . . 250 . . Destroy Structure 1032 | . 58 28 94 11 . 38 6 56 3 67 8 99 . 11 33 1 1 . 3 4 2 28 . 206 112 . 73 51 39 Partial Spotted 30 | . . . . . . . . . . . . . . . . . . . . . . . . . . . . . 30 Lose Combat Pursuer 405 | . . . . . . 45 . . . 45 30 60 15 . 90 . . . . . . . . . 45 . 60 . 15 Influence Decreases 13957 | 10 268 312 737 655 . 190 530 57 891 174 1310 203 672 806 113 683 512 29 82 298 659 343 146 675 1075 229 188 921 1189 Entered New Map 5340 | . 4 40 . 299 . . 79 57 375 114 581 143 532 324 73 523 372 19 12 98 61 69 76 111 265 219 58 509 327 Time Decay 6806 | 10 254 252 652 356 . 180 451 . 356 . 559 . 130 422 . 160 120 10 . 190 442 254 70 374 600 10 . 392 562 Lost Part 810 | . 10 . 30 . . 10 . . 10 60 20 60 10 20 20 . 20 . 50 10 50 . . . 20 . 90 20 300 Lost Ally 401 | . . 20 55 . . . . . . . . . . 40 20 . . . 20 . 106 20 . 40 40 . 40 . . Purge Threat 600 | . . . . . . . . . 150 . 150 . . . . . . . . . . . . 150 150 . . . . Squads Dispatched 47 | . 2 . 5 . . . 3 . 5 . 3 . . 2 . . . . 1 1 1 . . 3 8 . . 4 9 Investigation 8 | . 2 . 1 . . . 1 . 1 . 2 . . . . . . . . . . . . . . . . . 1 Extermination 12 | . . . . . . . . . . . . . . 1 . . . . . 1 . . . 1 5 . . 1 3 Reinforcement 15 | . . . 4 . . . 2 . 2 . 1 . . . . . . . 1 . 1 . . 2 1 . . . 1 Assault 8 | . . . . . . . . . . . . . . . . . . . . . . . . . 2 . . 3 3 Garrison 4 | . . . . . . . . . 2 . . . . 1 . . . . . . . . . . . . . . 1 Intercept . | . . . . . . . . . . . . . . . . . . . . . . . . . . . . . . Searches Triggered . | . . . . . . . . . . . . . . . . . . . . . . . . . . . . . . Construction Impeded 6 | . . . . . . . 2 . 1 . . . . . . . . . . . 1 . . 1 . . . . 1 Haulers Reinforced . | . . . . . . . . . . . . . . . . . . . . . . . . . . . . . . Active Scanning Responses . | . . . . . . . . . . . . . . . . . . . . . . . . . . . . . . Cargo Convoy Interrupts . | . . . . . . . . . . . . . . . . . . . . . . . . . . . . . . Stealth | -11 -10 -10 -9 -9 -9 -8 -8 -8 -8 -8 -8 -8 -7 -7 -7 -6 -6 -6 -6 -5 -5 -5 -5 -5 -4 -3 -3 -2 -2 --------- Run | Yrd Mat Min Mat Min Exi Min Mat Gar Mat Gar Mat Gar Fac Sto Gar Fac Was Fac DSF Fac Ext Cet Arc Hub Fac Res Gar Res Qua Distress Signals 25 | . 2 . 3 . . . 3 . 1 . . . 1 1 . 1 . . . . 1 2 . 5 3 . . . 2 Communications Jammed . | . . . . . . . . . . . . . . . . . . . . . . . . . . . . . . Distress Signals . | . . . . . . . . . . . . . . . . . . . . . . . . . . . . . . Times Spotted 487 | . 10 5 48 6 . 13 22 1 22 33 24 20 7 14 32 5 6 . 9 7 24 9 3 16 39 . 35 26 51 Peak Tracking Total 9 | . 4 3 6 2 . 4 3 1 4 6 5 7 3 3 6 4 2 . 3 3 5 5 1 5 5 . 7 5 9 Tactical Retreats 21 | . . . . . . 1 . . . 3 1 1 1 . 6 . . . . . . . . . 4 . 3 . 1 Traps | -11 -10 -10 -9 -9 -9 -8 -8 -8 -8 -8 -8 -8 -7 -7 -7 -6 -6 -6 -6 -5 -5 -5 -5 -5 -4 -3 -3 -2 -2 ------- Run | Yrd Mat Min Mat Min Exi Min Mat Gar Mat Gar Mat Gar Fac Sto Gar Fac Was Fac DSF Fac Ext Cet Arc Hub Fac Res Gar Res Qua Traps Triggered 43 | . . . 2 . . . . 2 . 7 1 7 1 . 6 2 . . 1 . 4 . . . 2 . 5 . 3 Indirectly . | . . . . . . . . . . . . . . . . . . . . . . . . . . . . . . Trap Hack Attempts . | . . . . . . . . . . . . . . . . . . . . . . . . . . . . . . Triggered . | . . . . . . . . . . . . . . . . . . . . . . . . . . . . . . Disarmed . | . . . . . . . . . . . . . . . . . . . . . . . . . . . . . . Reprogrammed . | . . . . . . . . . . . . . . . . . . . . . . . . . . . . . . Reused . | . . . . . . . . . . . . . . . . . . . . . . . . . . . . . . Traps Extracted . | . . . . . . . . . . . . . . . . . . . . . . . . . . . . . . Installed . | . . . . . . . . . . . . . . . . . . . . . . . . . . . . . . Triggered . | . . . . . . . . . . . . . . . . . . . . . . . . . . . . . . Machines | -11 -10 -10 -9 -9 -9 -8 -8 -8 -8 -8 -8 -8 -7 -7 -7 -6 -6 -6 -6 -5 -5 -5 -5 -5 -4 -3 -3 -2 -2 ---------- Run | Yrd Mat Min Mat Min Exi Min Mat Gar Mat Gar Mat Gar Fac Sto Gar Fac Was Fac DSF Fac Ext Cet Arc Hub Fac Res Gar Res Qua Machines Disabled 59 | . 2 2 5 1 . . 1 1 . . 2 2 . 4 3 1 . . . 2 6 1 2 5 6 . 3 2 8 Max in Single Turn 2 | . 1 2 2 1 . . 1 1 . . 1 2 . 1 1 . . . . 2 1 1 1 2 2 . 1 1 1 Garrison Access 1 | . . . . . . . . . . . . . 1 . . . . . . . . . . . . . . . . Garrison Relay 1 | . . . . . . . . . . . . . . . . . . . . . . . . . . . 1 . . Phase Generator 2 | . . . . . . . . 1 . . . 1 . . . . . . . . . . . . . . . . . Network Hub 1 | . . . . . . . . . . . . . . . . . . . . . . . . 1 . . . . . Machines Repaired . | . . . . . . . . . . . . . . . . . . . . . . . . . . . . . . Machines Dismantled . | . . . . . . . . . . . . . . . . . . . . . . . . . . . . . . Machines Sabotaged . | . . . . . . . . . . . . . . . . . . . . . . . . . . . . . . Overloaded Fab Kills . | . . . . . . . . . . . . . . . . . . . . . . . . . . . . . . Hacking | -11 -10 -10 -9 -9 -9 -8 -8 -8 -8 -8 -8 -8 -7 -7 -7 -6 -6 -6 -6 -5 -5 -5 -5 -5 -4 -3 -3 -2 -2 --------- Run | Yrd Mat Min Mat Min Exi Min Mat Gar Mat Gar Mat Gar Fac Sto Gar Fac Was Fac DSF Fac Ext Cet Arc Hub Fac Res Gar Res Qua Machines Accessed 71 | . 5 . 7 . 1 . 6 2 7 2 11 4 1 3 3 . . 2 . 3 5 1 . 1 3 1 1 . 2 Terminals 51 | . 4 . 6 . . . 3 2 5 2 8 4 . 2 3 . . 1 . . 5 1 . 1 1 . 1 . 2 Fabricators . | . . . . . . . . . . . . . . . . . . . . . . . . . . . . . . Repair Stations 1 | . . . . . . . . . . . . . . . . . . . . 1 . . . . . . . . . Recycling Units 7 | . 1 . . . . . . . 1 . 2 . . . . . . 1 . 1 . . . . 1 . . . . Scanalyzers 5 | . . . 1 . . . 2 . . . . . . . . . . . . 1 . . . . 1 . . . . Garrison Access 6 | . . . . . . . 1 . 1 . 1 . 1 1 . . . . . . . . . . . 1 . . . Total Hacks 160 | . 12 . 17 . 1 . 11 4 17 4 27 10 1 3 8 . . 3 . 11 8 2 . 4 11 1 2 . 3 Successful 69 | . 5 . 10 . 1 . 7 . 9 . 13 1 1 1 2 . . 2 . 6 3 . . 1 3 1 1 . 2 Failed 90 | . 7 . 6 . . . 4 4 8 4 14 9 . 2 6 . . 1 . 5 5 2 . 3 8 . 1 . 1 Catastrophic 15 | . . . . . . . 1 3 . . 1 2 . 2 2 . . . . . 1 1 . 1 . . 1 . . Database Lockouts 1 | . . . 1 . . . . . . . . . . . . . . . . . . . . . . . . . . Manual 65 | . 3 . 9 . 1 . 2 4 15 1 19 1 . . . . . . . . 2 1 . 4 . . 1 . 2 Terminals 112 | . 11 . 12 . . . 6 4 14 4 20 10 . 2 8 . . 1 . . 8 2 . 4 1 . 2 . 3 Fabricators . | . . . . . . . . . . . . . . . . . . . . . . . . . . . . . . Repair Stations 3 | . . . . . . . . . . . . . . . . . . . . 3 . . . . . . . . . Recycling Units 20 | . 1 . . . . . . . 2 . 6 . . . . . . 2 . 2 . . . . 7 . . . . Scanalyzers 18 | . . . 5 . . . 4 . . . . . . . . . . . . 6 . . . . 3 . . . . Garrison Access 6 | . . . . . . . 1 . 1 . 1 . 1 1 . . . . . . . . . . . 1 . . . Terminal Hacks 19 | . 3 . 1 . 1 . 3 . 1 . 1 1 . . 2 . . 1 . . 2 . . 1 1 . 1 . . Prototype ID Bank 1 | . 1 . . . . . . . . . . . . . . . . . . . . . . . . . . . . Open Door 1 | . . . . . . . . . . . . . . . . . . . . . 1 . . . . . . . . Open DSF 1 | . . . . . . . . . . . . . . . . . . 1 . . . . . . . . . . . Branch Access Points 2 | . 1 . . . . . 1 . . . . . . . . . . . . . . . . . . . . . . Emergency Access Points 1 | . . . . . . . . . . . . . . . 1 . . . . . . . . . . . . . . Terminal Index 1 | . . . 1 . . . . . . . . . . . . . . . . . . . . . . . . . . Alert Level 1 | . . . . . . . 1 . . . . . . . . . . . . . . . . . . . . . . Unreport Threat 4 | . . . . . . . . . 1 . 1 . . . . . . . . . . . . 1 1 . . . . Locate Traps 2 | . 1 . . . . . . . . . . . . . . . . . . . 1 . . . . . . . . Hauler Manifests 1 | . . . . . . . 1 . . . . . . . . . . . . . . . . . . . . . . Patrol Navigation 1 | . . . . . . . . . . . . 1 . . . . . . . . . . . . . . . . . Security Stations 2 | . . . . . . . . . . . . . . . 1 . . . . . . . . . . . 1 . . Proto ID Catalog 1 | . . . . . 1 . . . . . . . . . . . . . . . . . . . . . . . . Fabricator Hacks . | . . . . . . . . . . . . . . . . . . . . . . . . . . . . . . Repair Station Hacks 2 | . . . . . . . . . . . . . . . . . . . . 2 . . . . . . . . . Scan Component 1 | . . . . . . . . . . . . . . . . . . . . 1 . . . . . . . . . Repair 1 | . . . . . . . . . . . . . . . . . . . . 1 . . . . . . . . . Recycling Unit Hacks 8 | . . . . . . . . . 1 . 4 . . . . . . 1 . . . . . . 2 . . . . Process 1 | . . . . . . . . . . . 1 . . . . . . . . . . . . . . . . . . Report Inventory 1 | . . . . . . . . . . . 1 . . . . . . . . . . . . . . . . . . Retrieve Matter 2 | . . . . . . . . . . . 1 . . . . . . . . . . . . . 1 . . . . Retrieve Components 4 | . . . . . . . . . 1 . 1 . . . . . . 1 . . . . . . 1 . . . . Scanalyzer 10 | . . . 3 . . . 3 . . . . . . . . . . . . 4 . . . . . . . . . Retrieve Study 10 | . . . 3 . . . 3 . . . . . . . . . . . . 4 . . . . . . . . . Garrison Access Hacks 6 | . . . . . . . 1 . 1 . 1 . 1 1 . . . . . . . . . . . 1 . . . Unlock Access 5 | . . . . . . . 1 . 1 . 1 . . 1 . . . . . . . . . . . 1 . . . Seal Access 1 | . . . . . . . . . . . . . 1 . . . . . . . . . . . . . . . . Unauthorized Hacks 24 | . 2 . 6 . . . . . 6 . 7 . . . . . . . . . 1 . . . . . . . 2 Terminals 21 | . 1 . 6 . . . . . 5 . 6 . . . . . . . . . 1 . . . . . . . 2 Botnet 2 | . . . . . . . . . . . 1 . . . . . . . . . . . . . . . . . 1 Operators 1 | . . . 1 . . . . . . . . . . . . . . . . . . . . . . . . . . Skim 18 | . 1 . 5 . . . . . 5 . 5 . . . . . . . . . 1 . . . . . . . 1 Fabricators . | . . . . . . . . . . . . . . . . . . . . . . . . . . . . . . Repair Stations . | . . . . . . . . . . . . . . . . . . . . . . . . . . . . . . Recycling Units 3 | . 1 . . . . . . . 1 . 1 . . . . . . . . . . . . . . . . . . Tunnel 3 | . 1 . . . . . . . 1 . 1 . . . . . . . . . . . . . . . . . . Scanalyzers . | . . . . . . . . . . . . . . . . . . . . . . . . . . . . . . Garrison Access . | . . . . . . . . . . . . . . . . . . . . . . . . . . . . . . Data Cores Recovered 3 | . . . . . . . . . . . 1 . . 1 . . . . . . 1 . . . . . . . . Used . | . . . . . . . . . . . . . . . . . . . . . . . . . . . . . . Hacking Detections 46 | . 3 . 3 . . . 3 2 4 2 7 4 . 2 3 . . 1 . 2 4 2 . 1 1 . 1 . 1 Full Trace Events 7 | . 1 . . . . . 1 2 . 1 . 1 . . 1 . . . . . . . . . . . . . . Feedback Events . | . . . . . . . . . . . . . . . . . . . . . . . . . . . . . . Feedback Blocked . | . . . . . . . . . . . . . . . . . . . . . . . . . . . . . . Robot Schematics Acquired . | . . . . . . . . . . . . . . . . . . . . . . . . . . . . . . Robots Built . | . . . . . . . . . . . . . . . . . . . . . . . . . . . . . . Authchips . | . . . . . . . . . . . . . . . . . . . . . . . . . . . . . . Time . | . . . . . . . . . . . . . . . . . . . . . . . . . . . . . . Total Robot Build Rating . | . . . . . . . . . . . . . . . . . . . . . . . . . . . . . . Part Schematics Acquired . | . . . . . . . . . . . . . . . . . . . . . . . . . . . . . . Parts Built . | . . . . . . . . . . . . . . . . . . . . . . . . . . . . . . Authchips . | . . . . . . . . . . . . . . . . . . . . . . . . . . . . . . Time . | . . . . . . . . . . . . . . . . . . . . . . . . . . . . . . Total Part Build Rating . | . . . . . . . . . . . . . . . . . . . . . . . . . . . . . . Part Studies Acquired 10 | . . . 3 . . . 3 . . . . . . . . . . . . 4 . . . . . . . . . Parts Repaired 1 | . . . . . . . . . . . . . . . . . . . . 1 . . . . . . . . . Time 44 | . . . . . . . . . . . . . . . . . . . . 44 . . . . . . . . . Parts Recycled . | . . . . . . . . . . . . . . . . . . . . . . . . . . . . . . Recycled Matter 297 | . . . . . . . . . . . 297 . . . . . . . . . . . . . . . . . . Retrieved Matter 367 | . . . . . . . . . . . 367 . . . . . . . . . . . . . . . . . . Retrieved Components 22 | . . . . . . . . . 9 . 10 . . . . . . . . . . . . . 3 . . . . Parts Scanalyzed . | . . . . . . . . . . . . . . . . . . . . . . . . . . . . . . Part Schematics Acquired . | . . . . . . . . . . . . . . . . . . . . . . . . . . . . . . Parts Damaged . | . . . . . . . . . . . . . . . . . . . . . . . . . . . . . . Bothacking | -11 -10 -10 -9 -9 -9 -8 -8 -8 -8 -8 -8 -8 -7 -7 -7 -6 -6 -6 -6 -5 -5 -5 -5 -5 -4 -3 -3 -2 -2 ------------ Run | Yrd Mat Min Mat Min Exi Min Mat Gar Mat Gar Mat Gar Fac Sto Gar Fac Was Fac DSF Fac Ext Cet Arc Hub Fac Res Gar Res Qua Used RIF Installer 6 | . . . . . . . . 2 . 1 . 1 . . 1 . . . . . . . . . . . 1 . . Zone Cloak 1 | . . . . . . . . . . . . . . . 1 . . . . . . . . . . . . . . Robot Detection 1 | . . . . . . . . . . 1 . . . . . . . . . . . . . . . . . . . Watcher Feeds 1 | . . . . . . . . 1 . . . . . . . . . . . . . . . . . . . . . Program Shield 1 | . . . . . . . . . . . . 1 . . . . . . . . . . . . . . . . . Autooverride 1 | . . . . . . . . . . . . . . . . . . . . . . . . . . . 1 . . Robots Hacked . | . . . . . . . . . . . . . . . . . . . . . . . . . . . . . . Non-combat . | . . . . . . . . . . . . . . . . . . . . . . . . . . . . . . Combat . | . . . . . . . . . . . . . . . . . . . . . . . . . . . . . . Robot Hacks Applied . | . . . . . . . . . . . . . . . . . . . . . . . . . . . . . . Relay Couplers Released 16 | . . . . . . . . 4 . 4 . . . . . . . . . . . . . . . . 4 . 4 Machine Destruction 4 | . . . . . . . . . . . . . . . . . . . . . . . . . . . 4 . . Programmers 12 | . . . . . . . . 4 . 4 . . . . . . . . . . . . . . . . . . 4 Fabnet Peak Effective % . | . . . . . . . . . . . . . . . . . . . . . . . . . . . . . . Robots Rewired 8 | . . . . . . . . . . . . . 2 . . . . . . . 6 . . . . . . . . Allies Hacked . | . . . . . . . . . . . . . . . . . . . . . . . . . . . . . . Hacks Repelled . | . . . . . . . . . . . . . . . . . . . . . . . . . . . . . . Allies | -11 -10 -10 -9 -9 -9 -8 -8 -8 -8 -8 -8 -8 -7 -7 -7 -6 -6 -6 -6 -5 -5 -5 -5 -5 -4 -3 -3 -2 -2 -------- Run | Yrd Mat Min Mat Min Exi Min Mat Gar Mat Gar Mat Gar Fac Sto Gar Fac Was Fac DSF Fac Ext Cet Arc Hub Fac Res Gar Res Qua Total Allies 31 | . . 5 . 1 . . . . . . . . 2 . 2 . . . . . 14 5 . . . . 2 . . Largest Group 6 | . . 4 4 1 . . . . . . . . 2 2 2 1 1 1 1 . 6 6 6 5 2 . 2 . . Highest-Rated Group 639 | . . 56 56 31 . . . . . . . . 44 44 157 95 95 95 95 . 190 639 639 480 192 . 142 . . Highest-Rated Ally 159 | . . 31 16 31 . . . . . . . . 32 32 95 95 95 95 95 . 159 159 159 96 96 . 80 . . Total Orders 7 | . . . . . . . . . . . . . . . . . . . . . 2 2 . 3 . . . . . STAY 3 | . . . . . . . . . . . . . . . . . . . . . . 1 . 2 . . . . . FOLLOW 2 | . . . . . . . . . . . . . . . . . . . . . . 1 . 1 . . . . . EXPLORE 2 | . . . . . . . . . . . . . . . . . . . . . 2 . . . . . . . . Ally Attacks 270 | . . 8 44 . . . . . . . . . 3 8 7 5 29 . 9 . 36 34 17 44 17 . 9 . . Total Damage 6998 | . . 85 442 . . . . . . . . . 81 169 255 130 669 . 102 . 674 1125 518 1917 388 . 443 . . Kills 35 | . . 3 4 . . . . . . . . . 1 1 3 . . . . . 5 4 2 10 2 . . . . Allies Corrupted 1 | . . . . . . . . . . . . . . . . . . . . . 1 . . . . . . . . Allies Melted . | . . . . . . . . . . . . . . . . . . . . . . . . . . . . . . Intel | -11 -10 -10 -9 -9 -9 -8 -8 -8 -8 -8 -8 -8 -7 -7 -7 -6 -6 -6 -6 -5 -5 -5 -5 -5 -4 -3 -3 -2 -2 ------- Run | Yrd Mat Min Mat Min Exi Min Mat Gar Mat Gar Mat Gar Fac Sto Gar Fac Was Fac DSF Fac Ext Cet Arc Hub Fac Res Gar Res Qua Active Infowar (turns) 3586 | 33 554 916 624 . . . . . . . . . . . . . . . . . 2 . . . . . . 564 893 Sensors 1457 | . . . . . . . . . . . . . . . . . . . . . . . . . . . . 564 893 Seismic 2127 | 33 554 916 624 . . . . . . . . . . . . . . . . . . . . . . . . . . T.N.C. 2 | . . . . . . . . . . . . . . . . . . . . . 2 . . . . . . . . Robot Analysis Total . | . . . . . . . . . . . . . . . . . . . . . . . . . . . . . . Derelict Logs Recovered 4 | . . 2 . 2 . . . . . . . . . . . . . . . . . . . . . . . . . Drone Launches 6 | . . . . . . . . . . . . . . . . . . . . . 6 . . . . . . . . Drone Recoveries 6 | . . . . . . . . . . . . . . . . . . . . . 6 . . . . . . . . Exploration | -11 -10 -10 -9 -9 -9 -8 -8 -8 -8 -8 -8 -8 -7 -7 -7 -6 -6 -6 -6 -5 -5 -5 -5 -5 -4 -3 -3 -2 -2 ------------- Run | Yrd Mat Min Mat Min Exi Min Mat Gar Mat Gar Mat Gar Fac Sto Gar Fac Was Fac DSF Fac Ext Cet Arc Hub Fac Res Gar Res Qua Turns Passed 28275 | 113 554 916 2507 1204 486 397 1174 1111 809 1501 1641 1678 279 1032 1512 336 244 24 359 474 1519 549 156 860 2327 26 1904 920 1663 Spaces Moved 11621 | 59 309 550 995 571 239 171 440 514 328 713 598 738 153 364 642 133 103 19 127 280 715 193 51 298 810 10 664 307 527 Core 72 | 7 . . . . . . . . . . . . . . . . . . . . . . . . . . . . 65 Treads 9277 | 52 309 550 995 571 239 171 440 514 295 436 598 494 . 336 174 71 7 . 109 6 123 185 51 298 810 10 664 307 462 Legs . | . . . . . . . . . . . . . . . . . . . . . . . . . . . . . . Wheels 2272 | . . . . . . . . . 33 277 . 244 153 28 468 62 96 19 18 274 592 8 . . . . . . . Hover . | . . . . . . . . . . . . . . . . . . . . . . . . . . . . . . Flight . | . . . . . . . . . . . . . . . . . . . . . . . . . . . . . . Fastest Speed 50 | 50 160 160 160 200 200 200 200 200 115 115 240 115 130 130 130 130 115 130 130 135 120 135 240 240 240 240 240 240 50 Average Speed 200 | 146 160 160 203 200 200 200 200 200 191 171 240 198 130 231 193 223 143 130 224 138 153 235 240 240 240 240 240 244 205 Slowest Speed 345 | 160 160 160 240 200 200 200 200 200 200 240 240 240 130 240 240 285 345 130 240 240 280 240 240 240 240 240 240 320 240 Overloaded Moves . | . . . . . . . . . . . . . . . . . . . . . . . . . . . . . . Propulsion Burnouts . | . . . . . . . . . . . . . . . . . . . . . . . . . . . . . . Robots Hopped . | . . . . . . . . . . . . . . . . . . . . . . . . . . . . . . Potential Cave-ins . | . . . . . . . . . . . . . . . . . . . . . . . . . . . . . . Cave-ins Triggered . | . . . . . . . . . . . . . . . . . . . . . . . . . . . . . . Exploration Rate (%) 53 | 4 52 96 91 97 60 46 50 72 40 72 59 91 4 50 83 5 68 1 89 8 87 66 69 34 26 . 68 6 61 Regions Visited 29 Branch Regions 10 Pre-discovered Areas 9 | . 1 1 3 . . . . . 2 . 2 . . . . . . . . . . . . . . . . . . Known Exits Taken 12 | . 1 . . . . 1 1 . 1 . 1 . 1 1 . . . 1 . 1 . . . 1 . 1 . 1 . Unknown Exits Taken 9 | 1 . 1 1 1 1 . . . . . . . . . . . . . . . 1 1 1 . 1 . . . . Scrap Searched 4 | . . 1 . 2 . 1 . . . . . . . . . . . . . . . . . . . . . . . Spaces Dug 32 | . . . . . . . . . . 1 . . . . 8 . . . . 3 . . . 16 . . 4 . . Terrain Destroyed 823 | . 56 38 90 11 . 46 . 71 . 32 5 106 . 8 29 . . . . 7 6 1 . 185 51 . 37 22 22 Melee . | . . . . . . . . . . . . . . . . . . . . . . . . . . . . . . Projectile 171 | . . . . . . . . . . 3 . . . . 29 . . . . 7 6 1 . 25 49 . 30 7 14 AOE 632 | . 56 38 90 11 . 46 . 71 . 29 5 106 . 8 . . . . . . . . . 159 . . . 13 . Terrain Rammed . | . . . . . . . . . . . . . . . . . . . . . . . . . . . . . . Walls Destroyed . | . . . . . . . . . . . . . . . . . . . . . . . . . . . . . . Machines Disabled . | . . . . . . . . . . . . . . . . . . . . . . . . . . . . . . Actions | -11 -10 -10 -9 -9 -9 -8 -8 -8 -8 -8 -8 -8 -7 -7 -7 -6 -6 -6 -6 -5 -5 -5 -5 -5 -4 -3 -3 -2 -2 --------- Run | Yrd Mat Min Mat Min Exi Min Mat Gar Mat Gar Mat Gar Fac Sto Gar Fac Was Fac DSF Fac Ext Cet Arc Hub Fac Res Gar Res Qua Total 14725 | 77 344 577 1319 602 250 199 582 572 444 869 705 858 201 479 790 157 152 18 163 335 1010 259 75 391 1103 12 877 414 891 Wait 1241 | . 1 14 164 8 4 11 42 6 62 43 43 10 6 36 32 2 4 . 6 8 48 27 18 48 229 . 125 64 180 Move 11596 | 58 308 549 994 570 238 170 440 512 328 712 597 737 152 364 641 133 102 18 126 279 714 192 50 297 809 10 663 306 527 Hop . | . . . . . . . . . . . . . . . . . . . . . . . . . . . . . . Pick Up 195 | 8 6 4 14 . 4 . 7 10 2 5 5 9 2 8 13 3 7 . 8 5 18 6 1 4 7 . 15 5 19 Fast Attach 79 | 5 . . 2 . . . 1 . . 6 . 1 1 4 3 1 4 . 1 5 16 1 . 1 6 . 7 3 11 Attach 107 | 2 1 . 3 . . . 4 . . 6 2 5 3 2 8 4 9 . 6 10 15 2 . . 6 2 4 3 10 Detach 37 | . . . . . . . . . . . . . . 2 1 2 7 . 1 10 11 . . . . . . . 3 Swap 235 | . 6 . 33 1 . 4 11 3 10 24 9 25 2 19 21 5 2 . 1 . 6 4 1 11 5 . 9 5 18 Drop 193 | . 3 . 18 1 4 . 10 10 4 7 4 7 2 14 18 2 1 . 1 4 23 11 1 5 8 . 10 5 20 Fire 812 | 3 19 8 89 11 . 14 63 21 35 57 44 48 12 27 43 5 16 . 13 14 59 16 4 20 31 . 36 23 81 Melee 4 | . . . . . . . . . . . . . . . . . . . . . . . . . . . . . 4 Ram 2 | . . . . . . . . . . . . . . . . . . . . . . . . . . . . . 2 Kick . | . . . . . . . . . . . . . . . . . . . . . . . . . . . . . . Crush 54 | 1 . 2 2 11 . . 4 6 3 . 1 . . 3 . . . . . . . . . 5 . . . . 16 Escape Stasis 57 | . . . . . . . . . . 9 . 16 . . 10 . . . . . 12 . . . 2 . 8 . . Rewire 113 | . . . . . . . . 4 . . . . 21 . . . . . . . 88 . . . . . . . . Trap . | . . . . . . . . . . . . . . . . . . . . . . . . . . . . . . Miscellaneous . | . . . . . . . . . . . . . . . . . . . . . . . . . . . . . . Route ------- -11/Scrapyard -10/Materials (discovered 3 exits: *Mat / *Min x2) -10/Mines (discovered 2 exits: *Mat x2) -9/Materials (discovered 5 exits: *Mat x3 / [*Min x2]) -9/Mines (discovered 3 exits: *Mat x2 / *Exi) -9/Exiles -8/Mines (discovered 2 exits: *Mat x2) -8/Materials (discovered 2 exits: *Fac / Gar) -8/Garrison (discovered 2 exits: *Mat x2) -8/Materials -8/Garrison (discovered 4 exits: *Fac x3 / *Mat) -8/Materials (discovered 4 exits: *Fac x3 / Gar) -8/Garrison (discovered 3 exits: *Fac x3) -7/Factory (discovered 3 exits: Fac / *Sto / *Low) -7/Storage -7/Garrison (discovered 3 exits: *Fac x3) -6/Factory -6/Waste -6/Factory -6/DSF -5/Factory (discovered 2 exits: *Fac / *Ext) -5/Extension (discovered 2 exits: *Fac / *Cet) -5/Cetus (discovered 2 exits: *Fac / [*Arc]) -5/Archives (discovered 2 exits: *Fac / *Hub) -5/Hub_04(d) -4/Factory (discovered 3 exits: *Res x2 / [*Upp]) -3/Research -3/Garrison (discovered 3 exits: [*Res x3]) -2/Research -2/Quarantine (discovered 1 exit: *Acc) History --------- Turn | Location | Event 60 | -11/Scrapyard | Discovered new exit (range 15) 114 | -11/Scrapyard | Entered Materials 300 | -10/Materials | Build established: Mutant 429 | -10/Materials | Discovered new exit (range 11) 604 | -10/Materials | Identified exit to Mines 668 | -10/Materials | Entered Mines 809 | -10/Mines | Learned Materials machine intel 897 | -10/Mines | Learned location of Mines (-9) 1094 | -10/Mines | Discovered new exit (range 13) 1099 | -10/Mines | Received a Rocket Launcher from a helpful Derelict 1546 | -10/Mines | Discovered new exit (range 12) 1571 | -10/Mines | Assisted by bots powering up and referring to "LRC-V3" 1584 | -10/Mines | Entered Materials 1584 | -9/Materials | Accompanied by 4 allies 1584 | -9/Materials | Evolved 2 slots: Utility x2 1585 | -9/Materials | Loaded intel: 46 machine locations 1978 | -9/Materials | Discovered new exit (range 3) 1985 | -9/Materials | Build established: Scavenger-Mutant 2404 | -9/Materials | Discovered new exit (range 12) 2455 | -9/Materials | Destroyed 7 combat bots 2467 | -9/Materials | Central database locked down 2825 | -9/Materials | Discovered new exit (range 4) 2988 | -9/Materials | Discovered new exit (range 9) 3143 | -9/Materials | Build established: Mutant 3535 | -9/Materials | Discovered new exit (range 10) 3640 | -9/Materials | Learned location of Zion (-6) 3881 | -9/Materials | Learned Storage emergency access door positions 4015 | -9/Materials | Learned Materials machine intel 4091 | -9/Materials | Entered Mines 4092 | -9/Mines | Identified exit to Materials 4097 | -9/Mines | Learned Materials emergency access door positions 4152 | -9/Mines | Met a Derelict bent on vengeance 4293 | -9/Mines | Learned Materials emergency access door positions 4843 | -9/Mines | Received a Mining Laser from a helpful Derelict 5203 | -9/Mines | Deemed a non-threat by the Exiles lab entrance 5203 | -9/Mines | Discovered new exit (range 5) 5295 | -9/Mines | Entered Exiles 5349 | -9/Exiles | Met 8R-AWN 5381 | -9/Exiles | Met EX-HEX 5437 | -9/Exiles | Met EX-BIN 5469 | -9/Exiles | Aligned with FarCom system 5471 | -9/Exiles | Given EX-Vault access code 5519 | -9/Exiles | Opened EX-Vault 5532 | -9/Exiles | Found Latent Energy Streamer 5536 | -9/Exiles | Found Trap Reconfigurator 5543 | -9/Exiles | Found Superbattery 5588 | -9/Exiles | Warned to stay clear of 0b10 Research branches 5640 | -9/Exiles | Met EX-DEC 5749 | -9/Exiles | Discovered new exit (range 14) 5781 | -9/Exiles | Stole three prototypes: Superbattery, Trap Reconfigurator, Latent Energy Streamer 5781 | -9/Exiles | Entered Mines 5831 | -8/Mines | Core integrity fell below 50% 6141 | -8/Mines | Discovered exit to Materials (range 9) 6178 | -8/Mines | Entered Materials 6178 | -8/Materials | Evolved 2 slots: Weapon x2 6180 | -8/Materials | Loaded intel: 51 machine locations 6469 | -8/Materials | Destroyed 7 combat bots 6486 | -8/Materials | Build established: Skirmisher 6557 | -8/Materials | Discovered new exit (range 8) 7352 | -8/Materials | Identified exit to Garrison 7352 | -8/Materials | Entered Garrison 7352 | -8/Garrison | Discovered recently destroyed garrison 7810 | -8/Garrison | Build established: Scavenger-Gunner 7864 | -8/Garrison | Discovered new exit (range 12) 8158 | -8/Garrison | Discovered new exit (range 10) 8217 | -8/Garrison | Installed Relay Interface Framework 8242 | -8/Garrison | Phase Generator disabled 8367 | -8/Garrison | Expanded RIF knowledge: Watcher Feeds 8463 | -8/Garrison | Entered Materials 9025 | -8/Materials | Learned 4 Recycling zone layouts 9076 | -8/Materials | Learned location of Lower Caves (-7) 9115 | -8/Materials | Learned Storage emergency access door positions 9142 | -8/Materials | Learned location of 1 exit from Recycling 9144 | -8/Materials | Build established: Gunner 9149 | -8/Materials | Garrison activated, responded to threat 9158 | -8/Materials | Learned Factory emergency access door positions 9162 | -8/Materials | Learned Factory emergency access door positions 9175 | -8/Materials | Learned Storage trap positions 9197 | -8/Materials | Learned Storage emergency access door positions 9272 | -8/Materials | Identified exit to Garrison 9272 | -8/Materials | Entered Garrison 9326 | -8/Garrison | Triggered checkpoint 9375 | -8/Garrison | Discovered new exit (range 6) 9631 | -8/Garrison | Destroyed 8 combat bots 9634 | -8/Garrison | Triggered checkpoint 9704 | -8/Garrison | Expanded RIF knowledge: Robot Detection 9726 | -8/Garrison | Discovered new exit (range 8) 9750 | -8/Garrison | Triggered checkpoint 9954 | -8/Garrison | Triggered checkpoint 9980 | -8/Garrison | Discovered new exit (range 9) 10004 | -8/Garrison | Triggered checkpoint 10036 | -8/Garrison | Triggered checkpoint 10404 | -8/Garrison | Discovered new exit (range 15) 10407 | -8/Garrison | Build established: Scavenger-Gunner 10773 | -8/Garrison | Entered Materials 10815 | -8/Materials | Build established: Scavenger-Skirmisher 11461 | -8/Materials | Learned Factory security intel 11644 | -8/Materials | Identified exit to Factory 11732 | -8/Materials | Learned 12 Factory zone layouts 11789 | -8/Materials | Learned location of 1 exit from Extension 12405 | -8/Materials | Identified exit to Garrison 12414 | -8/Materials | Entered Garrison 12453 | -8/Garrison | Expanded RIF knowledge: Program Shield 12916 | -8/Garrison | Lost 4 parts (1p1n1u1w) 12950 | -8/Garrison | Triggered checkpoint 13028 | -8/Garrison | Triggered checkpoint 13172 | -8/Garrison | Build established: Scavenger-Tank 13362 | -8/Garrison | Triggered checkpoint 13439 | -8/Garrison | Phase Generator disabled 13634 | -8/Garrison | Discovered exit to Factory (range 8) 13834 | -8/Garrison | Triggered checkpoint 13853 | -8/Garrison | Discovered exit to Factory (range 14) 14071 | -8/Garrison | Discovered exit to Factory (range 10) 14092 | -8/Garrison | Entered Factory 14092 | -7/Factory | Evolved 2 slots: Weapon x2 14093 | -7/Factory | Identified exit to Factory 14093 | -7/Factory | Identified exit to Storage 14093 | -7/Factory | Identified exit to Lower Caves 14094 | -7/Factory | FarCom data flow suspended 14371 | -7/Factory | Entered Storage 14371 | -7/Storage | Accompanied by 2 allies 14372 | -7/Storage | Loaded intel: 14 trap records 14399 | -7/Storage | Build established: Scavenger-Executioner 15354 | -7/Storage | Garrison activated, responded to threat 15403 | -7/Storage | Identified exit to Garrison 15403 | -7/Storage | Entered Garrison 15505 | -7/Garrison | Triggered checkpoint 15615 | -7/Garrison | Triggered checkpoint 15634 | -7/Garrison | Triggered checkpoint 15640 | -7/Garrison | Heavy support dispatched to Factory 15695 | -7/Garrison | Destroyed 8 combat bots 15801 | -7/Garrison | Triggered checkpoint 15905 | -7/Garrison | Triggered checkpoint 15926 | -7/Garrison | Heavy support dispatched to Factory 16029 | -7/Garrison | Discovered exit to Factory (range 13) 16064 | -7/Garrison | Heavy support dispatched to Factory 16166 | -7/Garrison | Heavy support dispatched to Factory 16254 | -7/Garrison | Expanded RIF knowledge: Zone Cloak 16295 | -7/Garrison | Found embedded Infiltrators 16299 | -7/Garrison | Triggered checkpoint 16430 | -7/Garrison | Discovered exit to Factory (range 12) 16497 | -7/Garrison | Build established: Executioner 16662 | -7/Garrison | Discovered exit to Factory (range 4) 16689 | -7/Garrison | Triggered checkpoint 16730 | -7/Garrison | H-XX Assembler disabled 16855 | -7/Garrison | Learned Factory security intel 16915 | -7/Garrison | Entered Factory 16915 | -6/Factory | Accompanied by 1 ally 16915 | -6/Factory | Evolved 2 slots: Weapon x2 17122 | -6/Factory | Build established: Scavenger-Executioner 17251 | -6/Factory | Sucked down chute 17251 | -6/Factory | Entered Waste 17266 | -6/Waste | EMP discharged 17266 | -6/Waste | System corruption reached 10% 17269 | -6/Waste | Spotted C-40 Crusher 17276 | -6/Waste | 1 allies followed down the chute 17293 | -6/Waste | Destroyed C-40 Crusher 17305 | -6/Waste | Destroyed C-40 Crusher 17314 | -6/Waste | Crushed by Compactor (1 part destroyed, 1 dropped) 17317 | -6/Waste | Crushed by Compactor (1 part destroyed, 1 dropped) 17318 | -6/Waste | Destroyed C-40 Crusher 17341 | -6/Waste | Spotted C-40 Crusher 17353 | -6/Waste | Destroyed C-40 Crusher 17357 | -6/Waste | Spotted C-40 Crusher 17366 | -6/Waste | EMP discharged 17372 | -6/Waste | Destroyed C-40 Crusher 17409 | -6/Waste | Spotted C-40 Crusher 17420 | -6/Waste | Destroyed C-40 Crusher 17466 | -6/Waste | EMP discharged 17481 | -6/Waste | Discovered new exit (range 11) 17495 | -6/Waste | Entered Factory 17495 | -6/Factory | Accompanied by 1 ally 17519 | -6/Factory | Identified exit to DSF 17519 | -6/Factory | Entered DSF 17519 | -6/DSF | Accompanied by 1 ally 17571 | -6/DSF | Additional patrols routed to DSF 17808 | -6/DSF | Sterilization system engaged 17828 | -6/DSF | Ambient heat levels rising (+10) 17829 | -6/DSF | Lost 4 parts (2u2w) 17829 | -6/DSF | Discovered new exit (range 16) 17843 | -6/DSF | Ambient heat levels rising (+10) 17858 | -6/DSF | Ambient heat levels rising (+10) 17873 | -6/DSF | Ambient heat levels rising (+10) 17878 | -6/DSF | Entered Factory 17878 | -5/Factory | Evolved 2 slots: Weapon x2 17879 | -5/Factory | Identified exit to Extension 18103 | -5/Factory | Repaired Flak Gun+ 18323 | -5/Factory | Discovered new exit (range 9) 18352 | -5/Factory | Entered Extension 18353 | -5/Extension | Identified exit to Factory 18701 | -5/Extension | Rescued a captive Derelict 18705 | -5/Extension | Rescued a captive Derelict 18813 | -5/Extension | Rescued a captive Derelict 18815 | -5/Extension | Rescued a captive Derelict 19038 | -5/Extension | Spotted B-75 Beast 19068 | -5/Extension | Spotted B-75 Beast 19089 | -5/Extension | Destroyed B-75 Beast 19112 | -5/Extension | Lost 6 allies 19423 | -5/Extension | Rescued a captive Derelict 19532 | -5/Extension | Rescued a captive Derelict 19535 | -5/Extension | Rescued a captive Derelict 19796 | -5/Extension | Rescued A7 19836 | -5/Extension | Discovered new exit (range 6) 19871 | -5/Extension | Entered Cetus 19871 | -5/Cetus | Accompanied by 2 allies (A7) 19876 | -5/Cetus | Acquired a Cetus Manufacturing Module code from A7 19900 | -5/Cetus | Spotted Cetus Guard 19900 | -5/Cetus | Spotted Cetus Guard 19904 | -5/Cetus | Spotted Cetus Guard 19905 | -5/Cetus | Spotted Cetus Guard 19912 | -5/Cetus | Allies destroyed Cetus Guard 19913 | -5/Cetus | Destroyed Cetus Guard 19913 | -5/Cetus | Destroyed Cetus Guard 19916 | -5/Cetus | Destroyed Cetus Guard 20055 | -5/Cetus | Started Cetus Manufacturing Module 20080 | -5/Cetus | Manufactured an Enhanced Grunt 20088 | -5/Cetus | Escorted A7 to Cetus Mainframe 20105 | -5/Cetus | Manufactured an Enhanced Grunt 20115 | -5/Cetus | Discovered new exit (range 15) 20130 | -5/Cetus | Manufactured an Enhanced Grunt 20155 | -5/Cetus | Manufactured an Enhanced Grunt 20163 | -5/Cetus | Spotted Cetus Guard 20163 | -5/Cetus | Spotted Cetus Guard 20168 | -5/Cetus | Spotted Cetus Guard 20170 | -5/Cetus | Destroyed Cetus Guard 20174 | -5/Cetus | Destroyed Cetus Guard 20175 | -5/Cetus | Spotted Cetus Guard 20180 | -5/Cetus | Manufactured an Enhanced Grunt 20185 | -5/Cetus | Allies destroyed Cetus Guard 20185 | -5/Cetus | Allies destroyed Cetus Guard 20218 | -5/Cetus | Discovered exit to Factory (range 15) 20230 | -5/Cetus | Met Revision 17 20420 | -5/Cetus | Entered Archives 20420 | -5/Archives | Accompanied by 6 allies (A7) 20425 | -5/Archives | Received a hacking code to weaken MAIN.C 20502 | -5/Archives | Discovered exit to Factory (range 15) 20536 | -5/Archives | Discovered new exit (range 15) 20576 | -5/Archives | Entered Hub_04(d) 20576 | -5/Hub_04(d) | Accompanied by 5 allies 20709 | -5/Hub_04(d) | Discovered exit to Factory (range 16) 21432 | -5/Hub_04(d) | Network Hub disabled 21436 | -5/Hub_04(d) | Entered Factory 21436 | -4/Factory | Accompanied by 2 allies 21436 | -4/Factory | Evolved 2 slots: Weapon x2 21876 | -4/Factory | Discovered new exit (range 9) 22344 | -4/Factory | Discovered new exit (range 14) 22646 | -4/Factory | System corruption reached 10% 23490 | -4/Factory | Discovered new exit (range 13) 23686 | -4/Factory | First assault squad dispatched 23763 | -4/Factory | Entered Research 23763 | -3/Research | Evolved 2 slots: Weapon x2 23789 | -3/Research | Identified exit to Garrison 23789 | -3/Research | Entered Garrison 23829 | -3/Garrison | Learned Research security intel 23936 | -3/Garrison | Found embedded Infiltrators 24016 | -3/Garrison | Spotted B-86 Titan 24020 | -3/Garrison | Triggered checkpoint 24039 | -3/Garrison | Triggered checkpoint 24045 | -3/Garrison | Triggered checkpoint 24062 | -3/Garrison | Destroyed B-86 Titan 24141 | -3/Garrison | Destroyed 15 combat bots 24149 | -3/Garrison | Lost 5 parts (1p4w) 24297 | -3/Garrison | Triggered checkpoint 24443 | -3/Garrison | Triggered checkpoint 24505 | -3/Garrison | Garrison Relay disabled 24550 | -3/Garrison | Expanded RIF knowledge: Autooverride 24587 | -3/Garrison | Spotted B-86 Titan 24593 | -3/Garrison | Destroyed B-86 Titan 24736 | -3/Garrison | Discovered new exit (range 9) 24957 | -3/Garrison | Discovered new exit (range 10) 25089 | -3/Garrison | Triggered checkpoint 25488 | -3/Garrison | Discovered new exit (range 10) 25693 | -3/Garrison | Entered Research 25693 | -2/Research | Evolved 2 slots: Weapon x2 25943 | -2/Research | First assault squad dispatched 25972 | -2/Research | Found Prototype Device 25972 | -2/Research | Identified Exp. EM Shield 26573 | -2/Research | Discovered new exit (range 10) 26612 | -2/Research | Identified exit to Quarantine 26613 | -2/Research | Entered Quarantine 26716 | -2/Quarantine | Found Alien Slashing Weapon 26716 | -2/Quarantine | Identified Sigix Broadsword 26795 | -2/Quarantine | Garrison activated, responded to threat 26963 | -2/Quarantine | Cryocooling Duct disabled 26978 | -2/Quarantine | Ambient heat levels rising (+20) 26978 | -2/Quarantine | Non-combat units ordered to evacuate 27133 | -2/Quarantine | Discovered new exit (range 11) 27155 | -2/Quarantine | Identified exit to Access 27211 | -2/Quarantine | Lost 5 parts (5w) 27231 | -2/Quarantine | Found Alien Artifact 27246 | -2/Quarantine | Spotted Alpha 7 27261 | -2/Quarantine | System corruption reached 10% 27280 | -2/Quarantine | Destroyed Alpha 7 27342 | -2/Quarantine | Found Alien Artifact 27363 | -2/Quarantine | First assault squad dispatched 27547 | -2/Quarantine | Lost 3 parts (1n2w) 27841 | -2/Quarantine | Found Alien Artifact 27845 | -2/Quarantine | Identified Terrabomb 27845 | -2/Quarantine | Used Terrabomb 27860 | -2/Quarantine | Found Terrabomb 27920 | -2/Quarantine | Found Alien Energy Cannon 27989 | -2/Quarantine | Lost 3 parts (1p1u1w) 28020 | -2/Quarantine | System corruption reached 30% 28044 | -2/Quarantine | Lost 5 parts (1u4w) 28081 | -2/Quarantine | Found Prototype Device 28081 | -2/Quarantine | Identified Thermal Barrier 28147 | -2/Quarantine | Identified Core Cannon 28207 | -2/Quarantine | Core integrity fell below 50% 28231 | -2/Quarantine | Lost 7 parts (2p1n4w) 28269 | -2/Quarantine | Core integrity fell below 20% 28276 | -2/Quarantine | Destroyed by H-88 Terminator with KE Penetrator Last Messages --------------- 28248_ ZQ>CJSN 28263_ B-74 Champion unfolds itself. 28263_ L-61 Swordsman unfolds itself. 28263_ E-15 Imp unfolds itself. 28263_ Adv. Signal Interpreter blown off. 28263_ E-15 Imp destroyed. 28268_ Critical hit (Burn: +37). 28270_ Penetrated by Slug. 28270_ Slug penetrates H-88 Terminator. 28270_ Penetrated by Slug. 28272_ Slug penetrates H-88 Terminator. 28272_ H-88 Terminator suffers critical hit (Destroy). 28272_ Penetrated by Slug. 28272_ Slammed into H-88 Terminator. 28273_ Penetrated by Slug. 28273_ Slug penetrates Wall. 28274_ Penetrated by Slug. Map ----- +----------------------------------------------------+ | ???????????????????????# #? ????????????????? | | ???????????????????????# #? ""???????????????? | | ???????????????????????# #?? ""???????????????? | | ???????????????????????# #???""???????????????? | | ???????????????????????# #????????????????????? | | ???????????????????????# #????????????????????? | | ??????????????????????? ????????????????????? | | ???????????????????????? ????????????????????? | | ???????????????????????? ????????????????????? | | ???????????????????????? ????????????????????? | | ???????????????????????# #????????????????????? | | ???????????????????????# #????????????????????? | | ???????????????????????# #????????????????????? | | ???????????????????????# #????????????????????? | | ???????????????######### #????????????????????? | | ???????????????# ## #????????????????????? | | ???????????????# ## #????????????????????? | | ???????????????# " ## #????????????????????? | | ???????????????# "" ## #????????????????????? | | ???????????????# "" ## #????????????????????? | | ???????????????# "" ## #????????????????????? | | ???????????????# " + #????????????????????? | | ???????????????# "" ## ############?????????? | | ???????????????# "" ## # ?????????? | | ???????????????# "" ## h # #???????? | | ???????????????# " ## @h # "" """ "" #???????? | | ??????????##???# ## # "" " " "" #???????? | | ??????????# ??# ## h # """ #???????? | | ??????????# ?####+#### # """ """ #???????? | | ?????? # ### ## l "/" " " #????? ?? | | ????? ## # """ """ #???? # | | ????? " ####### #??? # | | ????? #?????# #?? # | | ?????? ## ## #?????# #?? # | | ???????????# ?## ######## /%= #?? # | | ???????????# ???# #?# #######+######?? # | | ???????????##????# #?# ! #?????#%#??????? " | | ?????????????????# #?#= #?????#"#??????# " | | ?????????????????# #?# #?????# #??????# + | | ?????????????????# #?# =#?????# #??????# " | | ?????????????????# #?# #?????# #??????# " | | ?????????????????# #?# #?????# #?????## " | | ?????????????????# #?# #???### ###???# | | ?????????????????# #?# #???# * ##### = | | ?????????????????# !####!+###### !| * ="" | | ?????????????????# !!|!!!!! ! = *=="T | | ?????????????????# !#####!"##### = = | | ?????????????????# #???# ##???# ##### ! | | ?????????????######+####?# #????###+####??# | | ?????????????# #?# #????# #??### "" | +----------------------------------------------------+ Best States ------------- Heat Dissipation 137 Energy Generation 25 Energy Capacity 350 Matter Stores 300 Matter Capacity 300 Sight Range 16 Robot Scan Range 16 Terrain Scan Density 10 EM Shielding 2 Armor Coverage 600 Resistance: KI 30 Resistance: TH 50 Weapon Cycling 20 Evasion (%) 50 Targeting Accuracy 16 Target Analysis 8 Core Analysis 6 Recoil Reduction 2 Kinecelleration 30 Authchip Count 7 Item Schematics ----------------- None Robot Schematics ------------------ None Fabricated ------------ Nothing Repaired ---------- Flak Gun | 6% | -5/Factory Studied --------- Mni. Grenade Launcher | -9/Materials | Hacked Rocket Launcher | -9/Materials | Hacked Lgt. Treads | -9/Materials | Hacked Minigun | -8/Materials | Hacked Arm. Wheel | -8/Materials | Hacked Com. Wheel | -8/Materials | Hacked Arm. Huge Wheel | -5/Factory | Hacked Flak Gun | -5/Factory | Hacked Gauss Rifle | -5/Factory | Hacked Hvy. Mass Driver | -5/Factory | Hacked Alien Tech Used ----------------- Sigix Broadsword Terrabomb Core Cannon Achievements -------------- None Challenges ------------ None Game ------ Seed ScrapMagneticArticulator Manual? 0 Play Time 02:58:18 Cumulative 649.5 hours Start 2026.09.11 @ 17:58:04 End 2026.09.11 @ 23:27:21 Sessions 1 Manual Loads 0 Difficulty Rogue Special Mode None Game No. 354 Rogue 354 Adventurer 0 Explorer 0 Win Type - Total 21 Types 10/2/3/1/1/0/1/1/0/2 Lore% 86 Gallery% 85 Achievement% 77 Wizard Run 0 Options --------- Layout 0 ASCII 0 Keyboard 0 Movement Mouse Keybinds 0 Fullscreen 1 Font 18/SmallcapsGlow Map View 76x50 Zoom Use 0% Tactical HUD 1 Map Filters NONE Filters NONE Steam 1 RUN: abcfb84e-b9bf-4811-bc5b-9ce497456d44